bitfinex-derivatives/quotes_BTCF0:USTF0_20241005
["timestamp","ask_amount","ask_price","bid_price","bid_amount"]
[1728109687216,0.00241302,62183.0,62182.0,0.20368414]
[1728109687528,0.00241302,62183.0,62182.0,0.155489]
[1728109689917,0.07,62184.0,62182.0,0.058289]
[1728109690117,0.07,62184.0,62182.0,0.002]
[1728109691624,0.126288,62184.0,62182.0,0.002]
[1728109698537,0.07,62185.0,62182.0,0.002]
[1728109700633,0.07,62185.0,62182.0,0.001]
[1728109700838,0.07,62185.0,62182.0,0.002]
[1728109703926,0.07,62185.0,62182.0,0.058289]
[1728109717637,0.07,62185.0,62183.0,0.04819514]
[1728109718527,0.07,62185.0,62183.0,0.10448314]
[1728109719439,0.07,62185.0,62183.0,0.056288]
[1728109719642,0.07,62185.0,62183.0,0.057288]
[1728109720637,0.07,62185.0,62183.0,0.058288]
[1728109722034,0.07,62185.0,62183.0,0.08503366]
[1728109739654,0.03937872,62184.0,62183.0,0.08503366]
[1728109740552,0.07,62185.0,62183.0,0.08503366]
[1728109740753,0.03937872,62184.0,62183.0,0.08503366]
[1728109741049,0.03937872,62184.0,62183.0,0.08403366]
[1728109741255,0.03937872,62184.0,62183.0,0.08503366]
[1728109741651,0.03937872,62184.0,62183.0,0.08403366]
[1728109742054,0.03937872,62184.0,62183.0,0.08503366]
[1728109742252,0.03937872,62184.0,62183.0,0.08403366]
[1728109742449,0.03937872,62184.0,62183.0,0.08503366]
[1728109745050,0.03937872,62184.0,62183.0,0.02874566]
[1728109746756,0.03937872,62184.0,62175.0,0.0074]
[1728109746757,0.056291,62180.0,62179.0,0.04820983]
[1728109747057,0.056291,62180.0,62175.0,0.063694]
[1728109747058,0.056291,62179.0,62178.0,0.02729906]
[1728109747361,0.126291,62179.0,62176.0,0.056294]
[1728109748257,0.126291,62179.0,62177.0,0.04820983]
[1728109749156,0.127291,62179.0,62177.0,0.04820983]
[1728109749363,0.127291,62179.0,62176.0,0.10650383]
[1728109749862,0.127291,62179.0,62177.0,0.001]
[1728109751461,0.127291,62179.0,62177.0,0.002]
[1728109752158,0.071,62179.0,62177.0,0.001]
[1728109753064,0.071,62179.0,62177.0,0.002]
[1728109754457,0.07,62178.0,62177.0,0.058293]
[1728109755361,0.001,62179.0,62177.0,0.058293]
[1728109755563,0.001,62179.0,62178.0,0.056292]
[1728109755867,0.0112,62184.0,62178.0,0.056292]
[1728109756061,0.07,62183.0,62178.0,0.056292]
[1728109756575,0.001,62179.0,62178.0,0.056292]
[1728109757363,0.487089,62183.0,62177.0,0.12020983]
[1728109757364,0.488049,62183.0,62177.0,0.11920983]
[1728109757569,0.488089,62183.0,62180.0,0.05629]
[1728109758069,0.418089,62183.0,62180.0,0.12629]
[1728109758866,0.418089,62183.0,62180.0,0.12729]
[1728109759169,0.417089,62183.0,62180.0,0.12729]
[1728109759867,0.418089,62183.0,62180.0,0.12829]
[1728109760265,0.418089,62183.0,62180.0,0.072]
[1728109760561,0.418089,62183.0,62181.0,0.056289]
[1728109762065,0.418089,62183.0,62181.0,0.057289]
[1728109762565,0.417089,62183.0,62181.0,0.057289]
[1728109762770,0.418089,62183.0,62181.0,0.058289]
[1728109764072,0.488089,62183.0,62181.0,0.058289]
[1728109764970,0.4318,62183.0,62181.0,0.058289]
[1728109765169,0.4318,62183.0,62181.0,0.002]
[1728109765170,0.056289,62182.0,62181.0,0.002]
[1728109766266,0.056289,62182.0,62181.0,0.001]
[1728109766572,0.057289,62182.0,62181.0,0.002]
[1728109767085,0.057289,62182.0,62175.0,0.02711096]
[1728109767086,0.056294,62176.0,62175.0,0.02711096]
[1728109767373,0.056298,62172.0,62168.0,0.063701]
[1728109767570,0.056298,62172.0,62168.0,0.056301]
[1728109767571,0.07,62169.0,62168.0,0.056301]
[1728109767872,0.07,62169.0,62168.0,0.12168614]
[1728109768770,0.056298,62172.0,62168.0,0.057301]
[1728109768771,0.07,62171.0,62168.0,0.057301]
[1728109768970,0.07,62171.0,62168.0,0.09753815]
[1728109769162,0.07,62171.0,62168.0,0.10551083]
[1728109769472,0.07,62171.0,62169.0,0.0653854]
[1728109769675,0.07,62171.0,62168.0,0.057301]
[1728109769875,0.07,62171.0,62169.0,0.06538539]
[1728109770063,0.07,62171.0,62168.0,0.058301]
[1728109770263,0.07,62171.0,62169.0,0.06538539]
[1728109770470,0.07,62171.0,62168.0,0.058301]
[1728109770674,0.07,62171.0,62169.0,0.06538539]
[1728109770869,0.07,62171.0,62169.0,0.001]
[1728109770870,0.072,62171.0,62169.0,0.001]
[1728109771579,0.074,62171.0,62169.0,0.001]
[1728109772071,0.074,62171.0,62169.0,0.002]
[1728109772376,0.074,62171.0,62169.0,0.001]
[1728109772377,0.073,62171.0,62169.0,0.001]
[1728109773172,0.073,62171.0,62169.0,0.0573]
[1728109773775,0.073,62171.0,62169.0,0.0583]
[1728109779874,0.073,62171.0,62170.0,0.06421716]
[1728109781270,0.072,62171.0,62170.0,0.06521716]
[1728109781671,0.072,62171.0,62170.0,0.06621716]
[1728109782674,0.072,62171.0,62170.0,0.002]
[1728109789387,0.002,62171.0,62170.0,0.002]
[1728109789583,0.002,62171.0,62170.0,0.0583]
[1728109790977,0.002,62171.0,62170.0,0.1283]
[1728109794089,0.002,62171.0,62170.0,0.0583]
[1728109795186,0.002,62171.0,62170.0,0.12251716]
[1728109795584,0.002,62171.0,62170.0,0.0583]
[1728109801889,0.002,62171.0,62170.0,0.002]
[1728109802199,0.058299,62171.0,62170.0,0.002]
[1728109802897,0.128299,62171.0,62170.0,0.002]
[1728109803595,0.489099,62171.0,62170.0,0.002]
[1728109805200,0.51643122,62171.0,62170.0,0.002]
[1728109805894,0.056307,62162.0,62161.0,0.0074]
[1728109806101,0.126307,62162.0,62159.0,0.056309]
[1728109806298,0.07,62162.0,62159.0,0.056309]
[1728109806491,0.056308,62161.0,62159.0,0.056309]
[1728109807091,0.417108,62161.0,62159.0,0.056309]
[1728109807390,0.417108,62161.0,62159.0,0.08314304]
[1728109807592,0.056309,62160.0,62159.0,0.02683404]
[1728109807793,0.056309,62160.0,62156.0,0.04818886]
[1728109807993,0.07,62157.0,62155.0,0.04818886]
[1728109809103,0.07,62157.0,62156.0,0.001]
[1728109809500,0.07,62157.0,62156.0,0.057312]
[1728109809900,0.07,62157.0,62156.0,0.056312]
[1728109811595,0.07,62157.0,62156.0,0.060312]
[1728109816710,0.07,62159.0,62156.0,0.060312]
[1728109817805,0.126311,62157.0,62156.0,0.003]
[1728109818004,0.126311,62157.0,62156.0,0.004]
[1728109819212,0.126311,62157.0,62156.0,0.001]
[1728109819415,0.126311,62157.0,62156.0,0.004]
[1728109829408,0.3608,62161.0,62158.0,0.05631]
[1728109829609,0.3608,62161.0,62160.0,0.07]
[1728109830515,0.3618,62161.0,62160.0,0.07]
[1728109831631,0.3628,62161.0,62160.0,0.07]
[1728109831924,0.3638,62161.0,62160.0,0.07]
[1728109833114,0.003,62161.0,62160.0,0.07]
[1728109833321,0.3638,62161.0,62160.0,0.07]
[1728109835321,0.3638,62161.0,62159.0,0.089309]
[1728109835716,0.003,62161.0,62159.0,0.089309]
[1728109836026,0.3638,62161.0,62159.0,0.089309]
[1728109836412,0.003,62161.0,62159.0,0.089309]
[1728109836823,0.3638,62161.0,62159.0,0.089309]
[1728109837617,0.3638,62161.0,62159.0,0.15356925]
[1728109838112,0.3628,62161.0,62159.0,0.15356925]
[1728109838817,0.002,62161.0,62159.0,0.15356925]
[1728109839429,0.002,62161.0,62159.0,0.18065363]
[1728109840429,0.002,62161.0,62159.0,0.11639338]
[1728109843839,0.002,62161.0,62160.0,0.126309]
[1728109844036,0.002,62161.0,62160.0,0.19056925]
[1728109844230,0.002,62161.0,62160.0,0.158809]
[1728109845032,0.002,62161.0,62160.0,0.22310965]
[1728109845239,0.003,62161.0,62160.0,0.22310965]
[1728109845532,0.003,62161.0,62160.0,0.158809]
[1728109845930,0.001,62161.0,62160.0,0.158809]
[1728109846136,0.003,62161.0,62160.0,0.158809]
[1728109848840,0.003,62161.0,62160.0,1.241449]
[1728109849045,0.003,62161.0,62160.0,1.2917549]
[1728109849248,0.003,62161.0,62160.0,1.61029822]
[1728109849452,0.003,62161.0,62160.0,1.61029732]
[1728109849656,0.003,62161.0,62160.0,1.65054204]
[1728109849847,0.003,62161.0,62160.0,1.57027389]
[1728109850457,0.003,62161.0,62160.0,1.65056178]
[1728109851149,0.0112,62162.0,62161.0,0.056308]
[1728109851458,0.0112,62165.0,62164.0,0.056305]
[1728109851657,0.0112,62171.0,62164.0,0.18569819]
[1728109851846,0.0112,62171.0,62168.0,0.07]
[1728109852447,0.0112,62171.0,62166.0,0.056303]
[1728109852645,0.0112,62171.0,62167.0,0.07]
[1728109852855,0.0812,62171.0,62167.0,0.07]
[1728109853747,0.0832,62171.0,62168.0,0.001]
[1728109854057,0.0842,62171.0,62168.0,0.001]
[1728109854351,0.0832,62171.0,62168.0,0.001]
[1728109855049,0.0832,62171.0,62168.0,0.002]
[1728109855557,0.0812,62171.0,62168.0,0.001]
[1728109856252,0.0812,62171.0,62168.0,0.002]
[1728109868346,0.0112,62171.0,62170.0,0.0563]
[1728109868552,0.36176,62172.0,62170.0,0.0563]
[1728109868553,0.3608,62172.0,62170.0,0.0563]
[1728109868754,0.417098,62172.0,62170.0,0.0563]
[1728109869358,0.3608,62172.0,62168.0,0.072]
[1728109869655,0.3608,62172.0,62171.0,0.056299]
[1728109871163,0.447396,62174.0,62171.0,0.056299]
[1728109871664,0.001,62172.0,62171.0,0.057299]
[1728109871860,0.002,62172.0,62171.0,0.058299]
[1728109872667,0.001,62172.0,62171.0,0.058299]
[1728109873662,0.449396,62174.0,62171.0,0.058299]
[1728109873863,0.0393881,62173.0,62171.0,0.058299]
[1728109874165,0.001,62172.0,62171.0,0.057299]
[1728109874462,0.002,62172.0,62171.0,0.058299]
[1728109874850,0.001,62172.0,62171.0,0.057299]
[1728109875051,0.448356,62174.0,62171.0,0.057299]
[1728109875052,0.001,62173.0,62171.0,0.057299]
[1728109875248,0.057298,62173.0,62171.0,0.058299]
[1728109875451,0.057298,62173.0,62171.0,0.002]
[1728109875663,0.057298,62173.0,62172.0,0.056298]
[1728109875863,0.056298,62173.0,62172.0,0.056298]
[1728109877357,0.057298,62173.0,62172.0,0.057298]
[1728109877563,0.058298,62173.0,62172.0,0.057298]
[1728109878168,0.058298,62173.0,62172.0,0.058298]
[1728109881970,0.097686,62173.0,62172.0,0.058298]
[1728109883669,0.041388,62173.0,62172.0,0.058298]
[1728109887359,0.097685,62173.0,62172.0,0.058298]
[1728109889969,0.058297,62173.0,62172.0,0.058298]
[1728109905072,0.09768425,62173.0,62172.0,0.058298]
[1728109907590,0.04138725,62173.0,62172.0,0.058298]
[1728109912191,0.002,62173.0,62172.0,0.058298]
[1728109913187,0.128297,62173.0,62172.0,0.002]
[1728109913387,0.056301,62169.0,62166.0,0.02708919]
[1728109913591,0.056301,62169.0,62168.0,0.056301]
[1728109914692,0.057301,62169.0,62168.0,0.056301]
[1728109915085,0.059301,62169.0,62168.0,0.056301]
[1728109915488,0.057301,62169.0,62168.0,0.056301]
[1728109915688,0.059301,62169.0,62168.0,0.057301]
[1728109916197,0.059301,62169.0,62168.0,0.058301]
[1728109917189,0.129301,62169.0,62168.0,0.058301]
[1728109918391,0.059301,62169.0,62168.0,0.058301]
[1728109918594,0.003,62169.0,62168.0,0.058301]
[1728109918900,0.073,62169.0,62168.0,0.058301]
[1728109920091,0.11239047,62169.0,62168.0,0.058301]
[1728109923187,0.073,62169.0,62168.0,0.058301]
[1728109924590,0.003,62169.0,62168.0,0.058301]
[1728109927499,0.003,62169.0,62168.0,0.128301]
[1728109933203,0.003,62169.0,62168.0,0.058301]
[1728109948511,0.003,62169.0,62168.0,0.002]
[1728109948512,0.0593,62169.0,62168.0,0.002]
[1728109950617,0.4201,62169.0,62168.0,0.002]
[1728109953012,0.3638,62169.0,62168.0,0.128301]
[1728109959211,0.40318936,62169.0,62168.0,0.128301]
[1728109960714,0.3638,62169.0,62168.0,0.128301]
[1728109962525,0.003,62169.0,62168.0,0.128301]
[1728109984333,0.003,62169.0,62168.0,0.17646459]
[1728109985124,0.003,62169.0,62168.0,0.128301]
[1728109985328,0.003,62169.0,62168.0,0.17646459]
[1728109987131,0.003,62169.0,62168.0,0.058301]
[1728109988530,0.003,62169.0,62168.0,0.002]
[1728109988735,0.0986,62169.0,62168.0,0.002]
[1728109989431,0.1549,62169.0,62168.0,0.002]
[1728109994739,0.19429009,62169.0,62168.0,0.002]
[1728110002643,0.1549,62169.0,62168.0,0.002]
[1728110007848,0.5157,62169.0,62168.0,0.002]
[1728110009341,0.3638,62169.0,62168.0,0.002]
[1728110009544,0.3638,62169.0,62168.0,0.058301]
[1728110013644,0.40318996,62169.0,62168.0,0.058301]
[1728110017647,0.3638,62169.0,62168.0,0.058301]
[1728110029956,0.003,62169.0,62168.0,0.058301]
[1728110030160,0.3638,62169.0,62168.0,0.058301]
[1728110032760,0.40318978,62169.0,62168.0,0.058301]
[1728110035364,0.3638,62169.0,62168.0,0.058301]
[1728110037568,0.003,62169.0,62168.0,0.058301]
[1728110037774,0.3638,62169.0,62168.0,0.058301]
[1728110038072,0.3638,62169.0,62168.0,0.002]
[1728110038073,0.4201,62169.0,62168.0,0.002]
[1728110039068,0.3638,62169.0,62168.0,0.002]
[1728110039666,0.3638,62169.0,62168.0,0.05016359]
[1728110040077,0.3638,62169.0,62168.0,0.0502724]
[1728110043575,0.3638,62169.0,62168.0,0.002]
[1728110050666,0.40318948,62169.0,62168.0,0.002]
[1728110054178,0.04238948,62169.0,62168.0,0.002]
[1728110054776,0.003,62169.0,62168.0,0.002]
[1728110055673,0.3638,62169.0,62168.0,0.002]
[1728110056582,0.003,62169.0,62168.0,0.002]
[1728110056772,0.3638,62169.0,62168.0,0.002]
[1728110062778,0.40318967,62169.0,62168.0,0.002]
[1728110064395,0.04238967,62169.0,62168.0,0.002]
[1728110064784,0.04238967,62169.0,62168.0,0.072]
[1728110064986,0.003,62169.0,62168.0,0.128301]
[1728110070389,0.003,62169.0,62168.0,0.17654771]
[1728110072486,0.003,62169.0,62168.0,0.128301]
[1728110072683,0.003,62169.0,62168.0,0.17654366]
[1728110075995,0.003,62169.0,62168.0,0.10654366]
[1728110076196,0.003,62169.0,62168.0,0.17654366]
[1728110077200,0.003,62169.0,62168.0,1.210861]
[1728110077401,0.003,62169.0,62168.0,1.25909738]
[1728110077595,0.003,62169.0,62168.0,1.210861]
[1728110081701,0.003,62169.0,62168.0,0.610861]
[1728110087003,0.003,62169.0,62168.0,0.128301]
[1728110093499,0.003,62169.0,62168.0,0.19267225]
[1728110100015,0.003,62169.0,62168.0,0.128301]
[1728110105319,0.003,62169.0,62168.0,0.058301]
[1728110108022,0.003,62169.0,62168.0,0.12267225]
[1728110108328,0.003,62169.0,62168.0,0.19267225]
[1728110111632,0.003,62169.0,62168.0,0.128301]
[1728110118432,0.003,62169.0,62168.0,0.19267225]
[1728110120929,0.003,62169.0,62168.0,0.128301]
[1728110121424,0.003,62169.0,62168.0,0.19267225]
[1728110123029,0.003,62169.0,62168.0,0.128301]
[1728110130037,0.003,62169.0,62168.0,0.19267225]
[1728110130742,0.003,62169.0,62168.0,0.128301]
[1728110132143,0.003,62169.0,62168.0,0.058301]
[1728110132434,0.003,62169.0,62168.0,0.128301]
[1728110146748,0.003,62169.0,62168.0,0.19263467]
[1728110148148,0.003,62169.0,62168.0,0.128301]
[1728110153060,0.003,62169.0,62168.0,0.058301]
[1728110153362,0.003,62169.0,62168.0,0.128301]
[1728110157260,0.003,62169.0,62168.0,0.058301]
[1728110157460,0.003,62169.0,62168.0,0.128301]
[1728110175069,0.003,62169.0,62168.0,0.17655243]
[1728110181775,0.003,62169.0,62168.0,0.128301]
[1728110193802,0.0037,62176.0,62175.0,0.056295]
[1728110194002,0.059983,62189.0,62186.0,0.056285]
[1728110194003,0.0325,62189.0,62186.0,0.056285]
[1728110194302,0.0325,62189.0,62175.0,0.50847773]
[1728110194303,0.0325,62189.0,62187.0,0.126284]
[1728110196113,0.0335,62189.0,62187.0,0.127284]
[1728110196311,0.001,62189.0,62188.0,0.056283]
[1728110196506,0.001,62189.0,62188.0,0.1216482]
[1728110196698,0.00241202,62199.0,62194.0,0.056277]
[1728110196903,0.00241202,62199.0,62198.0,0.07]
[1728110197310,0.00241202,62199.0,62198.0,0.126274]
[1728110197612,0.0967,62211.0,62198.0,0.06535387]
[1728110197814,0.0967,62211.0,62208.0,0.07]
[1728110198296,0.0967,62211.0,62210.0,0.056263]
[1728110198502,0.0654,62211.0,62210.0,0.056263]
[1728110198912,0.0654,62211.0,62204.0,0.0037]
[1728110198913,0.0654,62211.0,62206.0,0.056267]
[1728110199210,0.056266,62207.0,62205.0,0.07]
[1728110199614,0.121663,62211.0,62210.0,0.001]
[1728110199912,0.121663,62211.0,62210.0,0.071]
[1728110200103,0.121663,62211.0,62210.0,0.07]
[1728110201008,0.121663,62211.0,62210.0,0.071]
[1728110201211,0.121663,62211.0,62210.0,0.072]
[1728110201516,0.0654,62211.0,62210.0,0.072]
[1728110205013,0.121662,62211.0,62210.0,0.072]
[1728110205417,0.121662,62211.0,62210.0,0.002]
[1728110206617,0.3608,62211.0,62210.0,0.128263]
[1728110223117,0.3608,62218.0,62217.0,0.056257]
[1728110223324,0.3608,62218.0,62217.0,0.126257]
[1728110224619,0.3608,62218.0,62217.0,0.127257]
[1728110225510,0.3608,62218.0,62217.0,0.128257]
[1728110227924,0.3608,62218.0,62217.0,0.15588972]
[1728110230829,0.0037,62220.0,62219.0,0.056255]
[1728110231022,0.0301,62223.0,62220.0,0.056254]
[1728110232013,0.0301,62223.0,62221.0,0.07]
[1728110232214,0.0301,62223.0,62221.0,0.126253]
[1728110233426,0.0301,62223.0,62222.0,0.056253]
[1728110235127,0.0301,62223.0,62222.0,0.058253]
[1728110237118,0.42711171,62225.0,62224.0,0.056251]
[1728110237119,0.36421171,62225.0,62224.0,0.056251]
[1728110237325,0.36421171,62225.0,62224.0,0.126251]
[1728110237326,0.36321171,62225.0,62224.0,0.126251]
[1728110238218,0.36321171,62225.0,62224.0,0.127251]
[1728110238418,0.36321171,62225.0,62224.0,0.128251]
[1728110240427,0.36321171,62225.0,62224.0,0.127251]
[1728110240630,0.36321171,62225.0,62224.0,0.128251]
[1728110242226,0.36321171,62225.0,62224.0,0.1560887]
[1728110245327,0.00241171,62225.0,62224.0,0.1560887]
[1728110262946,0.00241171,62225.0,62224.0,0.0860887]
[1728110263446,0.00241171,62225.0,62224.0,0.1560887]
[1728110265444,0.04176352,62225.0,62224.0,0.1560887]
[1728110272456,0.00241171,62225.0,62224.0,0.1560887]
[1728110276946,0.41946171,62225.0,62224.0,0.0298377]
[1728110277151,0.00241171,62225.0,62224.0,0.0860887]
[1728110279051,0.00241171,62225.0,62224.0,0.0998377]
[1728110279452,0.00241171,62225.0,62224.0,0.1560887]
[1728110280558,0.04176466,62225.0,62224.0,0.1560887]
[1728110282459,0.00241171,62225.0,62224.0,0.1560887]
[1728110282656,0.04176466,62225.0,62224.0,0.1560887]
[1728110283052,0.09109091,62225.0,62224.0,0.1560887]
[1728110284869,0.09109091,62225.0,62224.0,0.0860887]
[1728110285053,0.09109091,62225.0,62224.0,0.1560887]
[1728110287655,0.00241171,62225.0,62224.0,0.1560887]
[1728110291175,0.00241171,62225.0,62224.0,0.0998377]
[1728110291381,0.05866171,62225.0,62224.0,0.0998377]
[1728110300789,0.05866171,62225.0,62224.0,0.0298377]
[1728110302686,0.14734671,62225.0,62224.0,0.0298377]
[1728110304495,0.30833921,62225.0,62224.0,0.0298377]
[1728110305080,0.14734671,62225.0,62224.0,0.0298377]
[1728110305888,0.30802221,62225.0,62224.0,0.0298377]
[1728110306192,0.14734671,62225.0,62224.0,0.0298377]
[1728110307391,0.30798759,62225.0,62224.0,0.0298377]
[1728110307792,0.14734671,62225.0,62224.0,0.0298377]
[1728110307986,0.30798896,62225.0,62224.0,0.0298377]
[1728110308294,0.14734671,62225.0,62224.0,0.0298377]
[1728110309084,0.09801946,62225.0,62224.0,0.0298377]
[1728110309294,0.14735173,62225.0,62224.0,0.0298377]
[1728110309690,0.05866171,62225.0,62224.0,0.0298377]
[1728110313899,0.41946171,62225.0,62224.0,0.0298377]
[1728110314399,0.05866171,62225.0,62224.0,0.0298377]
[1728110314795,0.41946171,62225.0,62224.0,0.0298377]
[1728110315386,0.05866171,62225.0,62224.0,0.0298377]
[1728110315594,0.41946171,62225.0,62224.0,0.0298377]
[1728110316999,0.05866171,62225.0,62224.0,0.0298377]
[1728110317195,0.41946171,62225.0,62224.0,0.0298377]
[1728110317701,0.50815144,62225.0,62224.0,0.0298377]
[1728110318800,0.14735144,62225.0,62224.0,0.0298377]
[1728110319002,0.50815143,62225.0,62224.0,0.0298377]
[1728110319502,0.66638197,62225.0,62224.0,0.0298377]
[1728110319898,0.50573972,62225.0,62224.0,0.0298377]
[1728110320204,0.66638197,62225.0,62224.0,0.0298377]
[1728110321000,0.30558197,62225.0,62224.0,0.0298377]
[1728110321502,0.66638197,62225.0,62224.0,0.0298377]
[1728110322406,0.30558197,62225.0,62224.0,0.0298377]
[1728110322601,0.66638197,62225.0,62224.0,0.0298377]
[1728110323899,0.30558197,62225.0,62224.0,0.0298377]
[1728110324102,0.66638197,62225.0,62224.0,0.0298377]
[1728110324805,0.45640762,62225.0,62224.0,0.0298377]
[1728110325397,0.09560762,62225.0,62224.0,0.0298377]
[1728110325898,0.45640762,62225.0,62224.0,0.0298377]
[1728110326303,0.09560762,62225.0,62224.0,0.0298377]
[1728110326709,0.45640762,62225.0,62224.0,0.0298377]
[1728110328707,0.09560762,62225.0,62224.0,0.0298377]
[1728110328907,0.4564076,62225.0,62224.0,0.0298377]
[1728110329514,0.0956076,62225.0,62224.0,0.0298377]
[1728110329802,0.4564076,62225.0,62224.0,0.0298377]
[1728110330709,0.0956076,62225.0,62224.0,0.0298377]
[1728110330910,0.4564076,62225.0,62224.0,0.0298377]
[1728110331113,0.0956076,62225.0,62224.0,0.0298377]
[1728110331310,0.4564076,62225.0,62224.0,0.0298377]
[1728110331714,0.0956076,62225.0,62224.0,0.0298377]
[1728110332012,0.4564076,62225.0,62224.0,0.0298377]
[1728110332311,0.0956076,62225.0,62224.0,0.0298377]
[1728110332717,0.14493969,62225.0,62224.0,0.0298377]
[1728110332913,0.50573969,62225.0,62224.0,0.0298377]
[1728110333221,0.5633846,62225.0,62224.0,0.0298377]
[1728110333916,0.9241889,62225.0,62224.0,0.0298377]
[1728110334412,1.10107135,62225.0,62224.0,0.0298377]
[1728110334821,1.04342644,62225.0,62224.0,0.0298377]
[1728110336116,1.11342644,62225.0,62224.0,0.0298377]
[1728110336517,0.39182644,62225.0,62224.0,0.0298377]
[1728110336818,0.75262644,62225.0,62224.0,0.0298377]
[1728110337518,0.39182644,62225.0,62224.0,0.0298377]
[1728110337715,0.75262644,62225.0,62224.0,0.0298377]
[1728110338607,0.75262267,62225.0,62224.0,0.0298377]
[1728110339719,0.70329029,62225.0,62224.0,0.0298377]
[1728110339913,0.52640784,62225.0,62224.0,0.0298377]
[1728110343108,0.45640784,62225.0,62224.0,0.0298377]
[1728110347015,0.41705,62225.0,62224.0,0.0298377]
[1728110349815,0.45640726,62225.0,62224.0,0.0298377]
[1728110353718,0.45640726,62225.0,62224.0,0.0860887]
[1728110354925,0.52640726,62225.0,62224.0,0.0860887]
[1728110355832,0.73653127,62225.0,62224.0,0.0860887]
[1728110356416,0.66653127,62225.0,62224.0,0.0860887]
[1728110356814,0.50573892,62225.0,62224.0,0.0860887]
[1728110359121,0.50573567,62225.0,62224.0,0.0860887]
[1728110361430,0.14493567,62225.0,62224.0,0.0860887]
[1728110361635,0.50573567,62225.0,62224.0,0.0860887]
[1728110362819,0.41705,62225.0,62224.0,0.0860887]
[1728110364224,0.05625,62225.0,62224.0,0.0860887]
[1728110364425,0.41705,62225.0,62224.0,0.0860887]
[1728110365426,0.05625,62225.0,62224.0,0.0860887]
[1728110365633,0.41705,62225.0,62224.0,0.0860887]
[1728110369932,0.3608,62225.0,62224.0,0.0860887]
[1728110370340,0.3608,62225.0,62224.0,0.13429072]
[1728110370523,0.3608,62225.0,62224.0,0.0860887]
[1728110371230,0.3608,62225.0,62224.0,0.13422792]
[1728110374136,0.3608,62225.0,62224.0,0.0860887]
[1728110378041,0.3608,62225.0,62224.0,0.13422792]
[1728110378539,0.421706,62230.0,62224.0,0.07797692]
[1728110378739,0.420746,62230.0,62229.0,0.07]
[1728110378946,0.417046,62230.0,62229.0,0.07]
[1728110379839,0.3608,62230.0,62229.0,0.127246]
[1728110380836,0.3608,62230.0,62229.0,0.128246]
[1728110383235,0.0037,62235.0,62229.0,1.15408]
[1728110383540,0.0037,62235.0,62234.0,0.126242]
[1728110383743,0.0024109,62238.0,62237.0,0.056239]
[1728110383936,0.0024109,62238.0,62237.0,0.126239]
[1728110385636,0.0024109,62238.0,62237.0,0.127239]
[1728110385836,0.0024109,62238.0,62237.0,0.128239]
[1728110387447,0.0037,62243.0,62242.0,0.056234]
[1728110387648,0.3608,62246.0,62245.0,0.056232]
[1728110387847,0.3608,62246.0,62245.0,0.126232]
[1728110389248,0.3608,62246.0,62245.0,1.209192]
[1728110389748,0.3608,62246.0,62245.0,1.210192]
[1728110391843,0.3608,62246.0,62245.0,0.128232]
[1728110392038,0.3608,62246.0,62245.0,0.610192]
[1728110392247,0.3608,62246.0,62245.0,1.210192]
[1728110392441,0.3608,62246.0,62245.0,0.658232]
[1728110392653,0.3608,62246.0,62245.0,1.2377423]
[1728110393653,0.3608,62250.0,62245.0,0.5815103]
[1728110393956,0.3608,62250.0,62249.0,0.126228]
[1728110395449,0.3608,62250.0,62249.0,0.127228]
[1728110396351,0.3608,62250.0,62249.0,0.128228]
[1728110400645,0.417027,62250.0,62249.0,0.072]
[1728110400861,0.417027,62250.0,62249.0,0.002]
[1728110401158,0.417027,62250.0,62249.0,0.072]
[1728110402050,0.417027,62250.0,62249.0,0.002]
[1728110403258,0.417027,62250.0,62249.0,0.072]
[1728110404456,0.3608,62250.0,62249.0,0.128228]
[1728110404661,0.417027,62250.0,62249.0,0.002]
[1728110404857,0.487027,62250.0,62249.0,0.002]
[1728110408146,0.52637024,62250.0,62249.0,0.002]
[1728110409449,0.487027,62250.0,62249.0,0.002]
[1728110409951,0.487027,62250.0,62245.0,0.0112]
[1728110410157,0.126231,62246.0,62245.0,0.0112]
[1728110410366,0.126231,62246.0,62242.0,0.02699667]
[1728110410367,0.07,62246.0,62242.0,0.02699667]
[1728110410565,0.07,62246.0,62241.0,0.0112]
[1728110410760,0.056234,62242.0,62241.0,0.0112]
[1728110410952,0.056234,62242.0,62239.0,0.056237]
[1728110411155,0.417034,62242.0,62239.0,0.056237]
[1728110412458,0.417034,62242.0,62239.0,0.08324728]
[1728110412763,0.417034,62242.0,62239.0,0.08424728]
[1728110412964,0.417034,62242.0,62239.0,0.08524728]
[1728110412965,0.418034,62242.0,62239.0,0.08524728]
[1728110413463,0.418034,62242.0,62241.0,0.126235]
[1728110413464,0.3618,62242.0,62241.0,0.126235]
[1728110414860,0.3638,62242.0,62241.0,0.127235]
[1728110415765,0.3638,62242.0,62241.0,0.128235]
[1728110416467,0.003,62242.0,62241.0,0.128235]
[1728110423066,0.04234357,62242.0,62241.0,0.128235]
[1728110425273,0.04234357,62242.0,62241.0,0.058235]
[1728110425980,0.0423438,62242.0,62241.0,0.058235]
[1728110426269,0.4031438,62242.0,62241.0,0.058235]
[1728110428369,0.4593778,62242.0,62241.0,0.058235]
[1728110428573,0.50869528,62242.0,62241.0,0.002]
[1728110428768,0.056238,62238.0,62237.0,0.0112]
[1728110428967,0.056238,62238.0,62233.0,0.0112]
[1728110428968,0.05624,62236.0,62233.0,0.0112]
[1728110429171,0.05624,62236.0,62232.0,0.05865282]
[1728110429172,0.1093438,62235.0,62232.0,0.05865282]
[1728110429468,0.0393438,62234.0,62232.0,0.05865282]